[Event "EICC 2017"]
[Site "Minsk"]
[Date "2017.06.06"]
[Round "7"]
[White "Galliamova, Alisa"]
[Black "Zhigalko, Andrey"]
[Result "1/2-1/2"]
[ECO "A04"]
[WhiteElo "2456"]
[BlackElo "2566"]
[Annotator "ChessBase"]
[PlyCount "130"]
[EventDate "2017.??.??"]
[EventCountry "BLR"]
[SourceTitle "playchess.com"]
[Source "ChessBase"]
[SourceQuality "1"]
[TimeControl "40/5400+30:1800+30"]

1. Nf3 {[%emt 0:00:00]} c5 {[%emt 0:00:49]} 2. g3 {[%emt 0:00:20]} g6 {[%emt 0:00:19]} 3. c3 {[%emt 0:01:05]} Bg7 {[%emt 0:00:59]} 4. d4 {[%emt 0:00:10]} Qa5 {[%emt 0:05:00]} 5. Nbd2 {[%emt 0:21:16]} cxd4 {[%emt 0:05:59]} 6. Nb3 {[%emt 0:00:11]} Qb6 {[%emt 0:02:57]} 7. cxd4 {[%emt 0:00:36]} Nf6 {[%emt 0:01:03]} 8. Bg2 {[%emt 0:00:42]} O-O {[%emt 0:02:49]} 9. O-O {[%emt 0:02:08]} d6 {[%emt 0:01:53]} 10. d5 {[%emt 0:08:02]} Bf5 {[%emt 0:12:09]} 11. Be3 {[%emt 0:07:23]} Qa6 {[%emt 0:02:06]} 12. Nfd2 {[%emt 0:00:58]} Rc8 {[%emt 0:08:52]} 13. Bd4 {[%emt 0:01:58]} Qa4 {[%emt 0:23:45]} 14. Bc3 {[%emt 0:11:20]} Qd7 {[%emt 0:06:40]} 15. Re1 {[%emt 0:02:10]} Na6 {[%emt 0:01:48]} 16. e4 {[%emt 0:02:19]} Bg4 {[%emt 0:00:56]} 17. f3 {[%emt 0:02:11]} Bh3 {[%emt 0:00:04]} 18. Bxh3 {[%emt 0:03:34]} Qxh3 {[%emt 0:00:02]} 19. Qe2 {[%emt 0:00:29]} Rc7 {[%emt 0:05:17]} 20. Rac1 {[%emt 0:07:12]} Rac8 {[%emt 0:01:15]} 21. a3 {[%emt 0:01:08]} h5 {[%emt 0:01:13]} 22. Bd4 {[%emt 0:02:48]} Nd7 {[%emt 0:02:55]} 23. Bxg7 {[%emt 0:05:15]} Kxg7 {[%emt 0:00:02]} 24. Qf1 {[%emt 0:02:51]} Qxf1+ {[%emt 0:01:06]} 25. Kxf1 {[%emt 0:00:05]} Rc2 {[%emt 0:03:11]} 26. Ke2 {[%emt 0:03:39]} Nb6 {[%emt 0:00:30]} 27. Rxc2 {[%emt 0:00:50]} Rxc2 {[%emt 0:00:02]} 28. Rb1 {[%emt 0:00:49]} Na4 {[%emt 0:03:30]} 29. Nd4 {[%emt 0:00:13]} Rxb2 {[%emt 0:01:00]} 30. Rxb2 {[%emt 0:00:12]} Nxb2 {[%emt 0:00:03]} 31. Nb5 {[%emt 0:00:08]} Nc5 {[%emt 0:00:38]} 32. Nxa7 {[%emt 0:00:13]} f5 {[%emt 0:00:35]} 33. Nb5 {[%emt 0:01:53]} Kf6 {[%emt 0:00:37]} 34. Nc3 {[%emt 0:02:16]} Nbd3 {[%emt 0:02:30]} 35. Ke3 {[%emt 0:03:58]} g5 {[%emt 0:01:41]} 36. exf5 {[%emt 0:04:04]} Kxf5 {[%emt 0:00:02]} 37. Nc4 {[%emt 0:01:36]} Ne5 {[%emt 0:01:19]} 38. Nxe5 {[%emt 0:00:43]} Kxe5 {[%emt 0:00:05]} 39. f4+ {[%emt 0:00:37]} gxf4+ {[%emt 0:01:31]} 40. gxf4+ {[%emt 0:00:00]} Kf5 {[%emt 0:00:07]} 41. h3 {[%emt 0:02:22]} Nd7 {[%emt 0:07:23]} 42. Kf3 {[%emt 0:06:26]} Nb6 {[%emt 0:09:04]} 43. a4 {[%emt 0:06:44]} Nc4 {[%emt 0:04:18]} 44. Ne2 {[%emt 0:01:51]} Nb6 {[%emt 0:01:23]} 45. Nc3 {[%emt 0:04:27]} Nd7 {[%emt 0:05:58]} 46. Ne2 {[%emt 0:00:45]} Nf6 {[%emt 0:01:40]} 47. Nc3 {[%emt 0:00:37]} b6 {[%emt 0:01:57]} 48. Ke3 {[%emt 0:01:29]} Nd7 {[%emt 0:00:12]} 49. Kf3 {[%emt 0:01:25]} Nc5 {[%emt 0:00:02]} 50. Ke3 {[%emt 0:00:53]} h4 {[%emt 0:00:44]} 51. Kf3 {[%emt 0:00:57]} Nd3 {[%emt 0:00:45]} 52. Ne2 {[%emt 0:00:26]} Nb2 {[%emt 0:00:48]} 53. Nc3 {[%emt 0:00:47]} Nc4 {[%emt 0:00:29]} 54. Ne2 {[%emt 0:00:33]} Nd2+ {[%emt 0:01:59]} 55. Ke3 {[%emt 0:00:15]} Nb3 {[%emt 0:00:17]} 56. Kf3 {[%emt 0:00:43]} Nc5 {[%emt 0:00:27]} 57. Nc3 {[%emt 0:00:33]} e5 {[%emt 0:01:23]} 58. dxe6 {[%emt 0:00:20]} Kxe6 {[%emt 0:00:10]} 59. Kg4 {[%emt 0:05:29]} d5 {[%emt 0:00:08]} 60. Nb5 {[%emt 0:01:10]} Nxa4 {[%emt 0:01:26]} 61. Kxh4 {[%emt 0:01:19]} Kf5 {[%emt 0:00:23]} 62. Kg3 {[%emt 0:00:24]} Nc5 {[%emt 0:00:35]} 63. Kf3 {[%emt 0:00:36]} Na4 64. Kg3 Ke4 65. Nd6+ Ke3 1/2-1/2